Cogmind - Beta 12 *** ADVENTURER MODE // 2023.10.27 @ 20:02:18 Player: Khazzy Result: Destroyed by G-47 Trooper with Particle Gun Performance ------------- Evolutions (2) 1000 Regions Visited (3) 600 Robots Destroyed (73) 365 Value Destroyed (1946) 1946 Prototype IDs (6) 120 Alien Tech Used (0) 0 Bonus (35) 35 TOTAL SCORE: 4066 Bonus ------- High Alert Combat Kills 35 Cogmind --------- Core Integrity 0/550 Matter 102/300 Energy 99/100 System Corruption 2% Temperature Cool (9) Movement Core (750) Ox14 Location -8/Materials Parts ------- > --- POWER (2) -------- (None) > --- PROPULSION (2) --- (None) > --- UTILITY (5) ------ Small Storage Unit Large Storage Unit Large Storage Unit > --- WEAPON (2) ------- (None) > --- INVENTORY (15) --- Improved Medium Laser Peak State ------------ > --- POWER ------------ Light Deuterium Engine Light Nuclear Core > --- PROPULSION ------- Aluminum Leg Aluminum Leg > --- UTILITY ---------- Large Storage Unit Large Storage Unit Advanced Visual Processing Unit Improved Terrain Scanner Hacking Suite > --- WEAPON ----------- Pulse Rifle High-powered Shotgun > --- INVENTORY -------- Improved Flight Unit Improved Flight Unit Heat Sink Cooling System Small Storage Unit Compact Battery Seismic Detector Improved Medium Laser Light Assault Rifle Light Cannon Light Cannon Rocket Launcher Rocket Launcher Datajack Datajack [Rating: 27] Favorites ----------- Power Ion Engine Engine Ion Engine Power Core Light Nuclear Core Propulsion Aluminum Leg Leg Aluminum Leg Flight Unit Improved Flight Unit Utility Large Storage Unit Device Improved Terrain Scanner Storage Large Storage Unit Processor Advanced Visual Processing Unit Hackware Hacking Suite Protection Weapon Shielding Weapon Assault Rifle Energy Gun Pulse Rifle Ballistic Gun Assault Rifle Ballistic Cannon Light Cannon Launcher Grenade Launcher Build | -11 -10 -9 -8 ------- Run | Jun Mat Mat Mat Slots Evolved 4 | . . 2 2 Power 1 | . . 1 . Propulsion . | . . . . Utility 3 | . . 1 2 Weapon . | . . . . Parts Attached 52 | 7 11 13 21 Power 8 | 1 2 3 2 Engine 7 | 1 2 3 1 Core 1 | . . . 1 Reactor . | . . . . Propulsion 12 | 2 5 2 3 Treads . | . . . . Leg 8 | 2 3 2 1 Wheel . | . . . . Hover . | . . . . Flight 4 | . 2 . 2 Utility 13 | 1 2 3 7 Device 4 | . . . 4 Storage 5 | 1 . 2 2 Processor 1 | . . . 1 Hackware 1 | . . 1 . Protection 2 | . 2 . . Artifact . | . . . . Weapon 19 | 3 2 5 9 Energy Gun 3 | 2 . . 1 Energy Cannon . | . . . . Ballistic Gun 9 | 1 2 3 3 Ballistic Cannon 4 | . . 1 3 Launcher 3 | . . 1 2 Special Weapon . | . . . . Impact Weapon . | . . . . Slashing Weapon . | . . . . Piercing Weapon . | . . . . Special Melee Weapon . | . . . . Unidentified Prototypes 1 | . . . 1 Parts Lost 25 | . . 7 18 Power 4 | . . 2 2 Propulsion 4 | . . 1 3 Utility 5 | . . 1 4 Weapon 12 | . . 3 9 Highest Loss Streak 8 | . . 5 8 To Critical Strikes . | . . . . Average Slot Usage (%) 84 | . 98 88 73 Engine 10 | . 14 13 6 Core 1 | . . . 4 Leg 16 | . 26 21 8 Device 4 | . . . 9 Storage 19 | . 14 20 21 Processor 1 | . . . 2 Hackware 5 | . . 10 3 Protection 3 | . 12 1 . Energy Gun 3 | . 8 . 4 Ballistic Gun 9 | . 19 9 4 Ballistic Cannon 3 | . . 4 5 Launcher 3 | . . 6 2 Naked Turns . | . . . . Heaviest Build 61 | 11 14 59 61 Greatest Support 20 | 20 20 20 20 Greatest Overweight (x) 18 | 1 4 5 18 Average Overweight (x) 1 | . . 1 7 Largest Inventory Capacity 15 | 8 8 15 15 Average Capacity 13 | 7 8 14 15 Most Carried 15 | 5 8 15 15 Average Carried 8 | 1 6 9 9 Final Capacity 15 | 8 8 15 15 Final Carried 14 | 2 7 14 1 Class Distribution -------------------- 49% | Mutant 40% | Hacker-Mutant 9% | Scavenger-Mutant Dominant Class ---------------- Mutant | -10/Materials Hacker-Mutant | -9/Materials Mutant | -8/Materials Resources | -11 -10 -9 -8 ----------- Run | Jun Mat Mat Mat Matter Collected 1375 | 189 322 368 496 Remotely . | . . . . Salvage Created 1845 | . 493 768 584 Parts 143 | . 35 66 42 Haulers Intercepted 2 | . . 2 . Recyclers Shooed . | . . . . Parts Field Recycled . | . . . . Retrieved Matter . | . . . . Parts Self-Destructed . | . . . . Prevented . | . . . . Kills | -11 -10 -9 -8 ------- Run | Jun Mat Mat Mat Combat Hostiles Destroyed 50 | . 12 21 17 Guns 31 | . 12 9 10 Cannons 6 | . . 1 5 AOE 13 | . . 11 2 Classes Destroyed 12 | . 4 7 1 Worker 7 | . . 4 3 Builder 1 | . . 1 . Tunneler 1 | . 1 . . Hauler 2 | . . 2 . Recycler 2 | . . 1 1 Mechanic 1 | . . 1 . Operator 1 | . . 1 . Watcher 8 | . 2 3 3 Swarmer 13 | . 3 6 4 Grunt 28 | . 9 12 7 Sentry 8 | . . 3 5 Hunter 1 | . . . 1 Best Kill Streak 6 | . 5 6 5 Combat Bots Only 5 | . 5 5 5 Max Kills in Single Turn 3 | . 1 3 3 Gunslinging 1 | . . 1 . Exploded 2 | . . 2 1 Melee . | . . . . Uniques/NPCs Destroyed . | . . . . Combat | -11 -10 -9 -8 -------- Run | Jun Mat Mat Mat Damage Taken 3469 | . 362 1065 2042 Core 863 | . 72 231 560 Absorbed by Shields . | . . . . Redirected to Shielding 106 | . 31 75 . Core Remaining (%) 71 | 100 71 42 . Volleys Fired 177 | . 41 69 67 Largest 2 | . 2 2 2 Hottest 107 | . 60 40 107 Shots Fired 291 | . 82 89 120 Gun 205 | . 82 58 65 Cannon 53 | . . 6 47 Launcher 33 | . . 25 8 Special . | . . . . Kinetic 206 | . 53 64 89 Thermal 52 | . 29 . 23 Explosive 33 | . . 25 8 Electromagnetic . | . . . . Robot Hit Streak 19 | . 13 13 19 Robot Miss Streak 3 | . 2 2 3 Penetration Max . | . . . . Secondary Targets 3 | . . 2 1 Max Gunslinging Chain 1 | . . 1 1 Shots Hit Robots 195 | . 58 48 89 Core Hits 142 | . 26 59 57 Critical Kills . | . . . . Critical Parts Destroyed . | . . . . Critical Strikes 3 | . . . 3 Burn 1 | . . . 1 Blast 2 | . . . 2 Melee Attacks . | . . . . Impact . | . . . . Slashing . | . . . . Piercing . | . . . . Sneak Attacks . | . . . . Combat Hostiles . | . . . . Follow-up Attacks . | . . . . Damage Inflicted 4616 | . 695 2043 1878 Guns 1947 | . 684 522 741 Cannons 814 | . . 93 721 Explosions 1817 | . . 1403 414 Melee . | . . . . Ramming 38 | . 11 25 2 Kinetic 2216 | . 461 615 1140 Thermal 605 | . 223 60 322 Explosive 1757 | . . 1343 414 Electromagnetic . | . . . . Impact . | . . . . Slashing . | . . . . Piercing . | . . . . Highest Corruption 2 | . . . 2 Average Corruption 2 | . . . 2 Corruption Purged . | . . . . Corruption Blocked . | . . . . Effects 7 | . . . 7 Message Errors 1 | . . . 1 Matter Fused 3 | . . . 3 Heat Flow Errors 1 | . . . 1 Data Loss (minor) 1 | . . . 1 Data Loss (major) 1 | . . . 1 Overload Shots . | . . . . Overflow Damage 98 | . . 65 33 Projectiles . | . . . . Explosions 98 | . . 65 33 Melee . | . . . . Knockbacks 6 | . . 1 5 Impact . | . . . . Kinetic 6 | . . 1 5 Secondary . | . . . . Self-Inflicted Damage 174 | . . 174 . Shots 3 | . . 3 . Rammed 1 | . . . 1 Targets Rammed 7 | . 2 3 2 Kicked 6 | . 2 3 1 Crushed . | . . . . Highest Temperature 198 | . 81 40 198 Average Temperature 42 | . 30 13 52 Received Heat Transfer 2094 | . 219 552 1323 Siege Activations . | . . . . Robots Corrupted . | . . . . Combat Hostiles . | . . . . Parts Fried . | . . . . Impact Corruptions . | . . . . Robots Melted . | . . . . Combat Hostiles . | . . . . Parts Melted 1 | . . . 1 Heat Transferred 1327 | . 500 50 777 Parts Sabotaged . | . . . . Parts Stolen . | . . . . Parts Stripped . | . . . . Power Chain Reactions . | . . . . Missiles Intercepted . | . . . . Alert | -11 -10 -9 -8 ------- Run | Jun Mat Mat Mat Peak Influence 509 | . 183 509 198 Initial 82 | . . 18 82 Average 154 | . 101 302 76 Maximum Alert Level 2 | . . 2 . Low Security (%) 73 | 100 100 19 100 Level 1 17 | . . 52 . Level 2 9 | . . 28 . Level 3 . | . . . . Level 4 . | . . . . Level 5 . | . . . . High Security . | . . . . Max Security . | . . . . Squads Dispatched 11 | . 3 2 6 Investigation 7 | . 3 2 2 Extermination . | . . . . Reinforcement 1 | . . . 1 Assault . | . . . . Garrison 3 | . . . 3 Intercept . | . . . . Searches Triggered . | . . . . Construction Impeded . | . . . . Haulers Reinforced . | . . . . Active Scanning Responses . | . . . . Cargo Convoy Interrupts . | . . . . Stealth | -11 -10 -9 -8 --------- Run | Jun Mat Mat Mat Distress Signals 7 | . 1 1 5 Communications Jammed . | . . . . Distress Signals . | . . . . Times Spotted 83 | . 19 29 35 Peak Tracking Total 7 | . 7 7 5 Tactical Retreats 3 | . . 3 . Traps | -11 -10 -9 -8 ------- Run | Jun Mat Mat Mat Traps Triggered 2 | . 1 1 . Indirectly . | . . . . Trap Hack Attempts . | . . . . Triggered . | . . . . Disarmed . | . . . . Reprogrammed . | . . . . Reused . | . . . . Traps Extracted . | . . . . Installed . | . . . . Triggered . | . . . . Machines | -11 -10 -9 -8 ---------- Run | Jun Mat Mat Mat Machines Disabled 10 | . . 9 1 Max in Single Turn 9 | . . 9 1 Machines Repaired . | . . . . Machines Sabotaged . | . . . . Overloaded Fab Kills . | . . . . Hacking | -11 -10 -9 -8 --------- Run | Jun Mat Mat Mat Machines Accessed 6 | . 3 1 2 Terminals 6 | . 3 1 2 Fabricators . | . . . . Repair Stations . | . . . . Recycling Units . | . . . . Scanalyzers . | . . . . Garrison Access . | . . . . Total Hacks 19 | . 9 3 7 Successful 15 | . 5 3 7 Failed 4 | . 4 . . Catastrophic . | . . . . Database Lockouts . | . . . . Manual . | . . . . Terminals 19 | . 9 3 7 Fabricators . | . . . . Repair Stations . | . . . . Recycling Units . | . . . . Scanalyzers . | . . . . Garrison Access . | . . . . Terminal Hacks 15 | . 5 3 7 Record 8 | . . 3 5 Prototype ID Bank 3 | . 2 . 1 Alert Level 1 | . 1 . . Unreport Threat 1 | . . . 1 Locate Traps 1 | . 1 . . Hauler Manifests 1 | . 1 . . Fabricator Hacks . | . . . . Repair Station Hacks . | . . . . Recycling Unit Hacks . | . . . . Scanalyzer . | . . . . Garrison Access Hacks . | . . . . Unauthorized Hacks . | . . . . Terminals . | . . . . Fabricators . | . . . . Repair Stations . | . . . . Recycling Units . | . . . . Scanalyzers . | . . . . Garrison Access . | . . . . Data Cores Recovered 1 | . . 1 . Used . | . . . . Hacking Detections 6 | . 3 1 2 Full Trace Events 6 | . 3 1 2 Feedback Events . | . . . . Feedback Blocked . | . . . . Robot Schematics Acquired . | . . . . Robots Built . | . . . . Authchips . | . . . . Time . | . . . . Total Robot Build Rating . | . . . . Part Schematics Acquired . | . . . . Parts Built . | . . . . Authchips . | . . . . Time . | . . . . Total Part Build Rating . | . . . . Parts Repaired . | . . . . Time . | . . . . Parts Recycled . | . . . . Recycled Matter . | . . . . Retrieved Matter . | . . . . Retrieved Components . | . . . . Parts Scanalyzed . | . . . . Part Schematics Acquired . | . . . . Parts Damaged . | . . . . Bothacking | -11 -10 -9 -8 ------------ Run | Jun Mat Mat Mat Used RIF Installer . | . . . . Robots Hacked . | . . . . Non-combat . | . . . . Combat . | . . . . Robot Hacks Applied . | . . . . Relay Couplers Released . | . . . . Fabnet Peak Effective % . | . . . . Robots Rewired . | . . . . Allies Hacked . | . . . . Hacks Repelled . | . . . . Allies | -11 -10 -9 -8 -------- Run | Jun Mat Mat Mat Total Allies . | . . . . Largest Group . | . . . . Highest-Rated Group . | . . . . Highest-Rated Ally . | . . . . Total Orders . | . . . . Ally Attacks . | . . . . Total Damage . | . . . . Kills . | . . . . Allies Corrupted . | . . . . Allies Melted . | . . . . Intel | -11 -10 -9 -8 ------- Run | Jun Mat Mat Mat Robot Analysis Total . | . . . . Derelict Logs Recovered . | . . . . Drone Launches . | . . . . Drone Recoveries . | . . . . Exploration | -11 -10 -9 -8 ------------- Run | Jun Mat Mat Mat Turns Passed 3796 | 86 847 1243 1620 Spaces Moved 1189 | 51 537 367 234 Core 95 | 21 6 . 68 Treads . | . . . . Legs 1065 | 30 513 367 155 Wheels . | . . . . Hover . | . . . . Flight 29 | . 18 . 11 Fastest Speed 50 | 50 117 120 260 Average Speed 230 | 98 121 238 498 Slowest Speed 950 | 120 250 470 950 Overloaded Moves . | . . . . Propulsion Burnouts . | . . . . Robots Hopped . | . . . . Cave-ins Triggered . | . . . . Exploration Rate (%) 28 | 3 58 31 21 Regions Visited 3 Branch Regions . Pre-discovered Areas . | . . . . Known Exits Taken . | . . . . Unknown Exits Taken 3 | 1 1 1 . Scrap Searched . | . . . . Spaces Dug . | . . . . Terrain Destroyed 144 | . . 111 33 Melee . | . . . . Projectile . | . . . . AOE 144 | . . 111 33 Terrain Rammed . | . . . . Walls Destroyed . | . . . . Machines Disabled . | . . . . Actions | -11 -10 -9 -8 --------- Run | Jun Mat Mat Mat Total 1958 | 86 656 643 573 Wait 461 | 21 41 170 229 Move 1186 | 50 536 366 234 Hop . | . . . . Pick Up 49 | 8 13 19 9 Fast Attach 2 | . 2 . . Attach 34 | 6 4 9 15 Detach . | . . . . Swap 16 | 1 5 4 6 Drop 26 | . 12 3 11 Fire 177 | . 41 69 67 Melee . | . . . . Ram 1 | . . . 1 Kick 6 | . 2 3 1 Crush . | . . . . Escape Stasis . | . . . . Rewire . | . . . . Trap . | . . . . Miscellaneous . | . . . . Route ------- -11/Junkyard -10/Materials (discovered 2 exits: *Mat / [*Min]) -9/Materials (discovered 2 exits: *Mat / [*Min]) -8/Materials History --------- Turn | Location | Event 4 | -11/Junkyard | Discovered new exit (range 16) 87 | -11/Junkyard | Entered Materials 318 | -10/Materials | Build established: Mutant 570 | -10/Materials | Discovered new exit (range 9) 819 | -10/Materials | Discovered new exit (range 15) 934 | -10/Materials | Entered another Materials area 934 | -9/Materials | Evolved 2 slots: Power x1, Utility x1 981 | -9/Materials | Discovered new exit (range 15) 1216 | -9/Materials | Build established: Hacker-Mutant 1529 | -9/Materials | Lost 5 parts (2p1n2w) 1566 | -9/Materials | Core integrity fell below 50% 2043 | -9/Materials | Discovered new exit (range 9) 2177 | -9/Materials | Entered another Materials area 2177 | -8/Materials | Evolved 2 slots: Utility x2 2867 | -8/Materials | Lost 4 parts (2n2u) 3115 | -8/Materials | Build established: Mutant 3521 | -8/Materials | Garrison activated, responded to threat 3551 | -8/Materials | Core integrity fell below 50% 3626 | -8/Materials | Lost 8 parts (1n2u5w) 3741 | -8/Materials | Core integrity fell below 20% 3797 | -8/Materials | Destroyed by G-47 Trooper with Particle Gun Last Messages --------------- System corrupted: Matter fused (-9). Y-45 Defender Lgt. Treads blasted off. Y-45 Defender destroyed. K-01 Serf collects debris. Acquired 47 matter. R-06 Scavenger collects Lgt. Treads. K-01 Serf collects debris. R-06 Scavenger collects Imp. Ion Engine. K-01 Serf collects debris. K-01 Serf cleans the Matter Pump. K-01 Serf cleans the Nuclear Reactor. System corrupted: Substantial component data lost. Lgt. Cannon destroyed. K-01 Serf cleans the Nuclear Reactor. Critical hit (Burn: +37). K-01 Serf cleans the Matter Pump. Lgt. Cannon destroyed. K-01 Serf cleans the Matter Pump. System corrupted: Matter fused (-9). [Achievement: First Step to Greatness] Map ----- +----------------------------------------------------+ | ??????? # ########## """ """ #??? ? ???????????? | | ????? # ## # """ "" # ?# ?????????? | | ??#?#??## ## """# """ """ # ?????? ?????????? | | ?#?#??### ## ! """# #? ??"????????????? | | ???????## ## !!/"""# #??""??+??????????? | | ?????#?## ## / # #??????# ???????? | | ######## ###+######+######## ??? ????????? | | # ##### ???? ##?????????? | | # ############### ???? | | # #?? | | #### ########### % ?? | | ???########???####### % ?? | | ?????## ] ! # ??? | | ? ???????? !/ u ??? | | ???????????"" !/ """ # % % ??? | | ? ? ????#? ?"" / """ #% ""???? | | ????????????"? ? """ # ############ "???? | | ???#????##? ?? ! # # ########? ????? | | ??????????#?#??######### # #?? ????? | | ???????????############# %# ! #??? ?????? | | ???????????#! # #?? ? ?????? | | ???????????# # #???????????? | | ???????????# """ k / #???????????? | | ???????????#? ? """ ! k# """ """??#??????????? | | ?????????????? """ # """ ""??????????????? | | ???????????# g@ # """ ????????????????? | | ???????????# #?####????????????????? | | ???????????# """ """%%u#??#??????????????????? | | ???????????# """ """k%%#?????????????????????? | | ????????????? ??""" """ #?????????????????????? | | ???????????????? #?????????????????????? | | ???????????????? ?????????????????????? | | ??????????????? ""?? """ ?????????????????????? | | ??????????????????? """ ?????????????????????? | | ??????????????????????"" #????????????????????? | | ??????????????????????? #????????????????????? | | ??????????????????????? #????????????????????? | | ???????????????????????"#####????????????????????? | | ???????????????????????"?????????????????????????? | | ?????????????????????????????????????????????????? | | ?????????????????????????????????????????????????? | | ?????????????????????????????????????????????????? | | ?????????????????????????????????????????????????? | | ?????????????????????????????????????????????????? | | ?????????????????????????????????????????????????? | | ?????????????????????????????????????????????????? | | ?????????????????????????????????????????????????? | | ?????????????????????????????????????????????????? | | ?????????????????????????????????????????????????? | | ?????????????????????????????????????????????????? | +----------------------------------------------------+ Best States ------------- Heat Dissipation 31 Energy Generation 23 Energy Capacity 430 Matter Stores 300 Matter Capacity 300 Sight Range 20 Robot Scan Range 15 Terrain Scan Range 16 Terrain Scan Density 10 Resistance: KI 20 Resistance: TH 20 Resistance: EX 20 Resistance: EM 20 Resistance: I 20 Resistance: S 20 Resistance: P 20 Weapon Shielding 33 Evasion (%) 55 Offensive Hacking 20 Item Schematics ----------------- None Robot Schematics ------------------ None Fabricated ------------ Nothing Alien Tech Used ----------------- None Achievements -------------- Everything Is Under Control First Step to Greatness Loot Pinata One Hack Too Far Risk Taker Shopping List Troublemaker Uninvited Guest Challenges ------------ None Game ------ Seed ArmageddonIonBeamcaster Manual? 0 Play Time 00:55:37 Cumulative 3.2 hours Start 2023.10.27 @ 18:56:07 End 2023.10.27 @ 20:02:18 Sessions 1 Manual Loads 0 Difficulty Adventurer Special Mode None Game No. 5 Rogue 4 Adventurer 1 Explorer 0 Win Type - Total 0 Types 0/0/0/0/0/0/0/0/0 Lore% 1 Gallery% 6 Achievement% 3 Wizard Run 0 Options --------- ASCII 0 Keyboard 0 Movement Arrows Keybinds 0 Fullscreen 2 Font 18/SmallcapsGlow Map View 76x50 Tactical HUD 0 Map Filters NONE Filters NONE Steam 1 RUN: a6404fbc-35d0-43ab-b662-b2df1f7567d5